Cogmind - Beta 13 X1 @@@ ROGUE MODE // 2023.12.14 @ 09:39:35 Player: VR-DUX Result: Destroyed by G-34 Mercenary with Small Laser Performance ------------- Evolutions (0) 0 Regions Visited (2) 400 Robots Destroyed (28) 140 Value Destroyed (547) 547 Prototype IDs (0) 0 Alien Tech Used (0) 0 Bonus (0) 0 TOTAL SCORE: 1087 Bonus ------- None Cogmind --------- Core Integrity 0/250 Matter 265/300 Energy 134/250 System Corruption 0% Temperature Cool (6) Movement Treading (240) Ox1 Location -10/Mines Parts ------- > --- POWER (1) -------- Ion Engine > --- PROPULSION (2) --- Light Treads > --- UTILITY (2) ------ Large Storage Unit > --- WEAPON (2) ------- Katana > --- INVENTORY (15) --- Light Nuclear Core Light Treads Compact Wheel Medium Storage Unit Medium Matter Pod (100) Structural Scanner Signal Interpreter Seismic Detector Light Armor Plating Hacking Suite Peak State ------------ > --- POWER ------------ Ion Engine > --- PROPULSION ------- Aluminum Leg Carbon-fiber Leg > --- UTILITY ---------- Large Storage Unit Improved Terrain Scanner > --- WEAPON ----------- EM Pulse Gun Assault Rifle > --- INVENTORY -------- Ion Engine Light Nuclear Core Light Treads Light Treads Light Treads Compact Wheel Medium Storage Unit Medium Matter Pod Structural Scanner Signal Interpreter Seismic Detector Light Armor Plating Hacking Suite EM Pulse Gun Katana [Rating: 13] Favorites ----------- Power Ion Engine Engine Ion Engine Propulsion Light Treads Treads Light Treads Leg Aluminum Leg Utility Improved Terrain Scanner Device Improved Terrain Scanner Storage Large Storage Unit Weapon EM Pulse Gun Energy Gun EM Pulse Gun Ballistic Gun Assault Rifle Slashing Weapon Katana Build | -11 -10 -10 ------- Run | Jun Mat Min Slots Evolved . | . . . Power . | . . . Propulsion . | . . . Utility . | . . . Weapon . | . . . Parts Attached 22 | 2 12 8 Power 2 | . 1 1 Engine 2 | . 1 1 Core . | . . . Reactor . | . . . Propulsion 9 | . 5 4 Treads 5 | . 3 2 Leg 4 | . 2 2 Wheel . | . . . Hover . | . . . Flight . | . . . Utility 3 | 1 2 . Device 1 | 1 . . Storage 2 | . 2 . Processor . | . . . Hackware . | . . . Protection . | . . . Artifact . | . . . Weapon 8 | 1 4 3 Energy Gun 5 | . 4 1 Energy Cannon . | . . . Ballistic Gun 2 | 1 . 1 Ballistic Cannon . | . . . Launcher . | . . . Special Weapon . | . . . Impact Weapon . | . . . Slashing Weapon 1 | . . 1 Piercing Weapon . | . . . Special Melee Weapon . | . . . Unidentified Prototypes . | . . . Parts Lost 10 | . 1 9 Power 1 | . . 1 Propulsion 3 | . . 3 Utility 1 | . . 1 Weapon 5 | . 1 4 Highest Loss Streak 8 | . 1 8 To Critical Strikes . | . . . Average Slot Usage (%) 99 | . 99 93 Engine 13 | . 14 13 Treads 16 | . 16 11 Leg 11 | . 11 15 Device 13 | . 14 12 Storage 14 | . 14 14 Energy Gun 22 | . 23 16 Ballistic Gun 4 | . 4 7 Naked Turns . | . . . Heaviest Build 30 | 14 30 30 Greatest Support 40 | 20 40 40 Greatest Overweight (x) 6 | . 1 6 Average Overweight (x) . | . . . Largest Inventory Capacity 15 | 8 15 15 Average Capacity 12 | 8 11 15 Most Carried 15 | 6 15 15 Average Carried 10 | 6 10 14 Final Capacity 15 | 8 15 15 Final Carried 15 | 6 15 10 Class Distribution -------------------- 100% | Mutant Dominant Class ---------------- Mutant | -10/Materials Mutant | -10/Mines Resources | -11 -10 -10 ----------- Run | Jun Mat Min Matter Collected 604 | 214 365 25 Remotely . | . . . Salvage Created 1249 | 113 1136 . Parts 65 | 5 60 . Haulers Intercepted 2 | . 2 . Recyclers Shooed 6 | 1 5 . Parts Field Recycled . | . . . Retrieved Matter . | . . . Parts Self-Destructed . | . . . Prevented . | . . . Kills | -11 -10 -10 ------- Run | Jun Mat Min Combat Hostiles Destroyed 13 | . 13 . Guns 11 | . 11 . AOE 2 | . 2 . Classes Destroyed 8 | 2 6 . Builder 2 | . 2 . Tunneler 1 | 1 . . Hauler 2 | . 2 . Recycler 6 | 1 5 . Operator 2 | . 2 . Watcher 2 | . 2 . Swarmer 3 | . 3 . Grunt 10 | . 10 . Best Kill Streak 3 | 2 3 . Combat Bots Only 3 | . 3 . Max Kills in Single Turn 2 | 1 2 . Gunslinging . | . . . Exploded 1 | . 1 . Melee . | . . . Uniques/NPCs Destroyed . | . . . Combat | -11 -10 -10 -------- Run | Jun Mat Min Damage Taken 1177 | . 467 710 Core 253 | . 60 193 Absorbed by Shields . | . . . Core Remaining (%) 100 | 100 . . Volleys Fired 94 | 4 90 . Largest 2 | 2 2 . Hottest 80 | 60 80 . Shots Fired 185 | 8 177 . Gun 185 | 8 177 . Cannon . | . . . Launcher . | . . . Special . | . . . Kinetic 71 | 4 67 . Thermal 4 | 4 . . Explosive . | . . . Electromagnetic 110 | . 110 . Robot Hit Streak 11 | 3 11 . Robot Miss Streak 7 | 2 7 . Penetration Max . | . . . Secondary Targets . | . . . Shots Hit Robots 110 | 5 105 . Core Hits 46 | 3 43 . Critical Kills 1 | . 1 . Critical Parts Destroyed . | . . . Critical Strikes 4 | . 4 . Destroy 1 | . 1 . Corrupt 3 | . 3 . Melee Attacks 1 | . . 1 Impact . | . . . Slashing 1 | . . 1 Piercing . | . . . Sneak Attacks . | . . . Combat Hostiles . | . . . Follow-up Attacks . | . . . Damage Inflicted 1629 | 55 1574 . Guns 1395 | 55 1340 . Cannons . | . . . Explosions 234 | . 234 . Melee . | . . . Ramming . | . . . Kinetic 472 | 21 451 . Thermal 268 | 34 234 . Explosive . | . . . Electromagnetic 889 | . 889 . Impact . | . . . Slashing . | . . . Piercing . | . . . Highest Corruption . | . . . Average Corruption . | . . . Corruption Purged . | . . . Corruption Blocked . | . . . Overload Shots . | . . . Overflow Damage 19 | . 19 . Projectiles . | . . . Explosions 19 | . 19 . Melee . | . . . Knockbacks . | . . . Impact . | . . . Kinetic . | . . . Secondary . | . . . Self-Inflicted Damage 40 | . 40 . Shots 2 | . 2 . Rammed . | . . . Targets Rammed . | . . . Kicked . | . . . Crushed . | . . . Highest Temperature 132 | 20 132 . Average Temperature 30 | 15 30 . Received Heat Transfer 300 | . 192 108 Siege Activations . | . . . Robots Corrupted . | . . . Combat Hostiles . | . . . Parts Fried 4 | . 4 . Impact Corruptions . | . . . Robots Melted . | . . . Combat Hostiles . | . . . Parts Melted . | . . . Heat Transferred 325 | 75 250 . Parts Sabotaged . | . . . Parts Stolen . | . . . Parts Stripped . | . . . Power Chain Reactions 4 | . 4 . Missiles Intercepted . | . . . Alert | -11 -10 -10 ------- Run | Jun Mat Min Peak Influence 237 | 10 237 46 Initial 46 | . 6 46 Average 128 | 6 141 34 Maximum Alert Level 1 | . 1 . Low Security (%) 86 | 100 84 100 Level 1 13 | . 15 . Level 2 . | . . . Level 3 . | . . . Level 4 . | . . . Level 5 . | . . . High Security . | . . . Max Security . | . . . Squads Dispatched 3 | . 3 . Investigation 1 | . 1 . Extermination . | . . . Reinforcement 2 | . 2 . Assault . | . . . Garrison . | . . . Intercept . | . . . Searches Triggered . | . . . Construction Impeded . | . . . Haulers Reinforced . | . . . Active Scanning Responses . | . . . Cargo Convoy Interrupts . | . . . Stealth | -11 -10 -10 --------- Run | Jun Mat Min Distress Signals 3 | . 3 . Communications Jammed . | . . . Distress Signals . | . . . Times Spotted 51 | . 31 20 Peak Tracking Total 12 | . 5 12 Tactical Retreats 2 | . 2 . Traps | -11 -10 -10 ------- Run | Jun Mat Min Traps Triggered 3 | . 2 1 Indirectly . | . . . Trap Hack Attempts . | . . . Triggered . | . . . Disarmed . | . . . Reprogrammed . | . . . Reused . | . . . Traps Extracted . | . . . Installed . | . . . Triggered . | . . . Machines | -11 -10 -10 ---------- Run | Jun Mat Min Machines Disabled 3 | . 3 . Max in Single Turn 2 | . 2 . Machines Repaired . | . . . Machines Sabotaged . | . . . Overloaded Fab Kills . | . . . Hacking | -11 -10 -10 --------- Run | Jun Mat Min Machines Accessed 7 | . 6 1 Terminals 4 | . 4 . Fabricators . | . . . Repair Stations . | . . . Recycling Units 2 | . 2 . Scanalyzers . | . . . Garrison Access . | . . . Total Hacks 16 | . 15 1 Successful 8 | . 7 1 Failed 8 | . 8 . Catastrophic 3 | . 3 . Database Lockouts . | . . . Manual 12 | . 12 . Terminals 12 | . 12 . Fabricators . | . . . Repair Stations . | . . . Recycling Units 3 | . 3 . Scanalyzers . | . . . Garrison Access . | . . . Terminal Hacks 5 | . 4 1 Robot Analysis 3 | . 3 . Open Door 1 | . . 1 Zone Layout 1 | . 1 . Fabricator Hacks . | . . . Repair Station Hacks . | . . . Recycling Unit Hacks 2 | . 2 . Retrieve Components 2 | . 2 . Scanalyzer . | . . . Garrison Access Hacks . | . . . Unauthorized Hacks 1 | . 1 . Terminals . | . . . Fabricators . | . . . Repair Stations . | . . . Recycling Units 1 | . 1 . Reject 1 | . 1 . Scanalyzers . | . . . Garrison Access . | . . . Data Cores Recovered . | . . . Used . | . . . Hacking Detections 6 | . 6 . Full Trace Events 1 | . 1 . Feedback Events . | . . . Feedback Blocked . | . . . Robot Schematics Acquired . | . . . Robots Built . | . . . Authchips . | . . . Time . | . . . Total Robot Build Rating . | . . . Part Schematics Acquired . | . . . Parts Built . | . . . Authchips . | . . . Time . | . . . Total Part Build Rating . | . . . Parts Repaired . | . . . Time . | . . . Parts Recycled . | . . . Recycled Matter . | . . . Retrieved Matter . | . . . Retrieved Components 19 | . 19 . Parts Scanalyzed . | . . . Part Schematics Acquired . | . . . Parts Damaged . | . . . Bothacking | -11 -10 -10 ------------ Run | Jun Mat Min Used RIF Installer . | . . . Robots Hacked . | . . . Non-combat . | . . . Combat . | . . . Robot Hacks Applied . | . . . Relay Couplers Released . | . . . Fabnet Peak Effective % . | . . . Robots Rewired . | . . . Allies Hacked . | . . . Hacks Repelled . | . . . Allies | -11 -10 -10 -------- Run | Jun Mat Min Total Allies . | . . . Largest Group . | . . . Highest-Rated Group . | . . . Highest-Rated Ally . | . . . Total Orders . | . . . Ally Attacks . | . . . Total Damage . | . . . Kills . | . . . Allies Corrupted . | . . . Allies Melted . | . . . Intel | -11 -10 -10 ------- Run | Jun Mat Min Robot Analysis Total 3 | . 3 . Derelict Logs Recovered . | . . . Drone Launches . | . . . Drone Recoveries . | . . . Exploration | -11 -10 -10 ------------- Run | Jun Mat Min Turns Passed 1860 | 34 1642 184 Spaces Moved 988 | 17 879 92 Core 1 | . . 1 Treads 572 | . 537 35 Legs 415 | 17 342 56 Wheels . | . . . Hover . | . . . Flight . | . . . Fastest Speed 120 | 120 120 160 Average Speed 147 | 120 144 182 Slowest Speed 350 | 120 190 350 Overloaded Moves . | . . . Propulsion Burnouts . | . . . Robots Hopped . | . . . Cave-ins Triggered . | . . . Exploration Rate (%) 43 | 3 97 29 Regions Visited 2 Branch Regions 1 Pre-discovered Areas . | . . . Known Exits Taken . | . . . Unknown Exits Taken 2 | 1 1 . Scrap Searched 1 | . . 1 Spaces Dug . | . . . Terrain Destroyed 54 | . 54 . Melee . | . . . Projectile . | . . . AOE 54 | . 54 . Terrain Rammed . | . . . Walls Destroyed . | . . . Machines Disabled . | . . . Actions | -11 -10 -10 --------- Run | Jun Mat Min Total 1210 | 22 1081 107 Wait 79 | . 76 3 Move 986 | 16 878 92 Hop . | . . . Pick Up 18 | . 16 2 Fast Attach 4 | 1 3 . Attach 10 | . 4 6 Detach . | . . . Swap 8 | 1 5 2 Drop 10 | . 9 1 Fire 94 | 4 90 . Melee 1 | . . 1 Ram . | . . . Kick . | . . . Crush . | . . . Escape Stasis . | . . . Rewire . | . . . Trap . | . . . Miscellaneous . | . . . Route ------- -11/Junkyard -10/Materials (discovered 5 exits: [*Mat x3] / *Min / [*Sub]) -10/Mines (discovered 1 exit: [*Mat]) History --------- Turn | Location | Event 7 | -11/Junkyard | Discovered new exit (range 3) 35 | -11/Junkyard | Entered Materials 364 | -10/Materials | Build established: Mutant 422 | -10/Materials | Discovered new exit (range 3) 667 | -10/Materials | Discovered new exit (range 9) 749 | -10/Materials | Discovered new exit (range 15) 889 | -10/Materials | Discovered new exit (range 8) 1443 | -10/Materials | Discovered new exit (range 17) 1677 | -10/Materials | Entered Mines 1718 | -10/Mines | Met a Derelict who couldn't figure out how to use a Trap Extractor 1833 | -10/Mines | Assembled infested the area 1834 | -10/Mines | Discovered new exit (range 7) 1838 | -10/Mines | Assisted by a Guerilla fighting off Assembled 1843 | -10/Mines | Core integrity fell below 50% 1845 | -10/Mines | Core integrity fell below 20% 1861 | -10/Mines | Destroyed by G-34 Mercenary with Small Laser Last Messages --------------- 01845_ R-06 Scavenger collects Lgt. Ion Engine. 01847_ The unstable cave ceiling collapses. 01848_ as-39791 destroyed. 01849_ The unstable cave ceiling collapses. 01850_ as-28754 destroyed. 01850_ as-42296 destroyed. 01850_ as-87179 destroyed. 01852_ as-90936 destroyed. 01852_ as-27284 destroyed. 01853_ The unstable cave ceiling collapses. 01854_ as-97974 destroyed. 01854_ S-10 Pest destroyed. 01854_ as-53054 destroyed. 01854_ as-80908 destroyed. 01854_ as-91967 destroyed. 01854_ Lgt. Treads destroyed. 01855_ The unstable cave ceiling collapses. 01857_ D-53 Grenadier destroyed. 01859_ The unstable cave ceiling collapses. 01860_ R-06 Scavenger collects Flight Unit. Map ----- +----------------------------------------------------+ | #???????????????????????????????????????????????? | | ##???????????????????????????????????????????????? | | #????????????????????????????????????????????????? | | #????????????????????????????????????????????????? | | #????????????????????????????????????????????????? | | ?#???????????????????????????????????????????????? | | ?????????????????????????????????????????????????? | | #????????????????????????????????????????????????? | | ??#??????????????????????????????????????????????? | | ?????????????????????????????????????????????????? | | ?????????????????????????????????????????????????? | | ?????????????????????????????????????????????????? | | #??????????????????????????????